bitfinex/quotes_ETHUSD_20241022
["timestamp","ask_amount","ask_price","bid_price","bid_amount"]
[1729556978571,0.58984442,2655.5,2655.1,4.68938065]
[1729556978776,0.58984442,2655.5,2655.1,8.45563065]
[1729556979202,0.58984442,2655.5,2655.1,4.68938065]
[1729556979476,0.58984442,2655.5,2655.0,0.8102]
[1729556979891,4.35569442,2655.5,2655.0,0.8102]
[1729556980076,3.76591,2655.4,2655.0,0.8102]
[1729556980499,3.76621,2655.2,2654.9,0.005]
[1729556980814,0.376621,2655.2,2654.9,0.005]
[1729556981115,3.76614,2655.3,2654.9,0.005]
[1729556981269,3.76613,2655.3,2654.9,0.005]
[1729556981474,4.35569442,2655.5,2654.9,3.77161]
[1729556981800,8.12155442,2655.5,2654.9,3.77153]
[1729556981997,3.76599,2655.4,2654.9,3.77153]
[1729556983113,3.76622,2655.2,2654.9,0.005]
[1729556983911,3.76612,2655.3,2654.9,0.005]
[1729556984117,4.35570442,2655.5,2655.0,3.76645]
[1729556984329,4.35570442,2655.5,2654.9,0.005]
[1729556984500,3.766,2655.4,2654.9,0.005]
[1729556984701,3.766,2655.4,2654.9,3.77154]
[1729556984931,8.12156442,2655.5,2654.9,3.77154]
[1729556985134,4.35570442,2655.5,2654.9,3.77154]
[1729556985802,4.35570442,2655.5,2655.0,3.76642]
[1729556986006,8.12156442,2655.5,2654.9,7.53807]
[1729556986335,4.35570442,2655.5,2654.9,7.53807]
[1729556986701,3.76647,2655.0,2654.9,0.005]
[1729556987221,6.76647,2655.0,2654.9,0.005]
[1729556987401,7.11219217,2655.0,2654.9,0.005]
[1729556987594,6.76647,2655.0,2654.9,0.005]
[1729556987794,7.11219005,2655.0,2654.9,0.005]
[1729556988005,8.83040346,2655.0,2654.9,0.005]
[1729556988232,8.84040346,2655.0,2654.9,1e-05]
[1729556988591,3.76704,2654.6,2654.5,3.52530992]
[1729556988907,22.47747,2654.3,2654.2,1.21875]
[1729556989242,22.47747,2654.3,2651.0,1.65883]
[1729556989243,0.01,2652.3,2651.0,1.65883]
[1729556989533,0.01,2652.3,2651.0,0.1499]
[1729556989534,3.77173,2651.3,2651.0,0.1499]
[1729556989737,7.0614023,2651.3,2651.0,0.1499]
[1729556989938,9.47545588,2651.3,2651.2,2.95]
[1729556990151,5.42400838,2651.3,2651.2,2.85]
[1729556990451,5.42400838,2651.3,2650.2,2.7]
[1729556990452,3.77315,2650.3,2650.2,2.7]
[1729556990591,4.11636998,2650.3,2650.2,2.7]
[1729556990792,0.89237195,2650.3,2650.2,2.7]
[1729556990988,4.11636998,2650.3,2650.2,2.7]
[1729556991543,3.78344,2650.1,2650.0,6.19e-06]
[1729556991835,3.77429,2649.5,2649.4,9.25e-06]
[1729556992004,5.41961128,2649.5,2649.4,9.25e-06]
[1729556992190,6.56428551,2649.5,2649.4,9.25e-06]
[1729556992390,1.88155262,2649.5,2649.4,9.25e-06]
[1729556992622,0.89049128,2649.5,2649.4,9.25e-06]
[1729556992835,0.23623134,2649.7,2649.6,3.77415]
[1729556993036,0.83589261,2650.0,2649.5,0.01]
[1729556993187,0.83589261,2650.0,2649.4,9.25e-06]
[1729556993535,4.60951261,2650.0,2649.4,9.25e-06]
[1729556993706,1.32046701,2650.0,2649.4,9.25e-06]
[1729556993912,0.83589261,2650.0,2649.4,9.25e-06]
[1729556994111,0.83589261,2650.0,2649.3,2.95000925]
[1729556994311,0.83589261,2650.0,2649.5,5.05272149]
[1729556994638,0.83589261,2650.0,2649.9,5.0189297]
[1729556994949,0.01877696,2650.6,2650.0,3.77356]
[1729556995160,0.84545311,2651.1,2650.1,3.77341]
[1729556995296,0.84545311,2651.1,2650.3,5.0189297]
[1729556995942,0.84545311,2651.1,2650.4,0.03379179]
[1729556997757,0.01,2651.0,2650.4,0.03379179]
[1729556997942,0.01,2651.0,2649.9,5.0189297]
[1729556997943,3.78218,2651.0,2649.9,5.0189297]
[1729556998143,0.46276331,2650.9,2650.5,0.03379179]
[1729556998480,0.46276331,2650.9,2649.9,5.0189297]
[1729556998616,0.46276331,2650.9,2650.6,0.03379179]
[1729556998617,0.01,2650.7,2650.6,0.03379179]
[1729556998963,3.77285,2650.6,2649.3,6.72456925]
[1729556999168,3.78263,2650.7,2650.6,0.0383794]
[1729556999336,0.80178133,2650.7,2649.6,3.77413]
[1729556999656,0.80178133,2650.7,2650.6,0.0383794]
[1729556999855,3.0,2651.0,2649.7,3.77387]
[1729557000068,0.84545311,2651.1,2649.9,5.0189297]
[1729557000431,0.84545311,2651.1,2650.1,3.77343]
[1729557000633,0.85545311,2651.1,2649.8,3.77379]
[1729557000835,0.85545311,2651.1,2649.5,5.0189297]
[1729557000836,0.01,2650.9,2649.5,8.7932097]
[1729557001017,0.01,2650.4,2649.3,2.95000925]
[1729557001215,0.01,2650.9,2649.3,2.7045254]
[1729557001216,3.77373,2649.9,2649.3,2.7045254]
[1729557001459,0.377373,2649.8,2649.3,2.7045254]
[1729557001761,0.01,2649.6,2649.3,2.7045254]
[1729557001971,3.77443,2649.4,2649.3,2.7045254]
[1729557002264,0.83227016,2649.5,2649.3,2.7045254]
[1729557002919,0.83227016,2649.5,2649.4,3.77443]
[1729557003154,7.63362366,2650.7,2649.4,4.79978954]
[1729557003391,3.0,2650.6,2649.3,2.7045254]
[1729557003615,6.77277,2650.6,2649.4,3.77443]
[1729557003898,4.62362366,2650.7,2650.1,3.77343]
[1729557003899,0.85103366,2650.7,2650.1,3.77343]
[1729557004057,0.85103366,2650.7,2649.5,8.7931397]
[1729557004058,0.85103366,2650.7,2650.4,3.77288]
[1729557004566,0.85103366,2650.7,2650.6,3.77273]
[1729557005002,0.01877696,2651.0,2650.6,3.77273]
[1729557005210,0.83994068,2651.5,2650.8,3.77239]
[1729557005356,0.78757868,2651.5,2650.8,3.77239]
[1729557005558,0.78757868,2651.5,2650.3,0.01]
[1729557005897,0.78757868,2651.5,2651.3,3.77162]
[1729557006394,0.78757868,2651.5,2651.4,3.77159]
[1729557006754,0.78757868,2651.5,2651.3,3.77162]
[1729557006960,0.78757868,2651.5,2651.4,3.77159]
[1729557007260,0.78757868,2651.5,2651.3,3.77162]
[1729557007261,0.78757868,2651.5,2651.1,4.54082]
[1729557007463,0.78757868,2651.5,2651.2,3.77186]
[1729557007890,0.78757868,2651.5,2651.1,0.7689]
[1729557008159,0.78757868,2651.5,2651.0,3.77215]
[1729557008467,4.55907868,2651.5,2650.6,3.77271]
[1729557008669,0.45590787,2651.4,2650.6,3.77271]
[1729557008886,0.78757868,2651.5,2650.8,3.77235]
[1729557009406,0.78757868,2651.5,2650.9,3.7723]
[1729557009713,0.78757868,2651.5,2651.3,3.7717]
[1729557009859,0.78757868,2651.5,2651.4,3.77159]
[1729557010609,8.81761666,2652.6,2651.5,3.77141]
[1729557010803,0.84925335,2652.5,2651.5,3.77134]
[1729557010964,0.84925335,2652.5,2651.7,3.77104]
[1729557011164,0.84925335,2652.5,2651.8,3.77088]
[1729557011419,0.84925335,2652.5,2651.4,3.77152]
[1729557011581,0.84925335,2652.5,2651.3,7.54346]
[1729557011819,0.84925335,2652.5,2651.8,3.77101]
[1729557011984,0.84925335,2652.5,2651.7,3.77113]
[1729557012178,0.46192334,2652.4,2651.7,3.77113]
[1729557012608,0.46192334,2652.4,2651.7,7.54219]
[1729557012901,0.46192334,2652.4,2651.9,3.77083]
[1729557013113,0.84925335,2652.5,2651.9,3.77083]
[1729557013264,0.84925335,2652.5,2651.9,3.77087]
[1729557013466,3.77017,2652.4,2651.6,3.77117]
[1729557013665,0.84925335,2652.5,2651.6,3.77117]
[1729557013872,0.84925335,2652.5,2651.8,3.771]
[1729557014087,0.46192433,2652.4,2651.8,3.771]
[1729557014611,0.46192433,2652.4,2651.2,0.8013]
[1729557014612,0.46192433,2652.4,2652.0,3.77065]
[1729557014825,0.84925335,2652.5,2652.1,3.77057]
[1729557015002,0.84925335,2652.5,2652.2,3.77043]
[1729557015181,0.84925335,2652.5,2652.4,3.77017]
[1729557015915,3.7688,2653.4,2652.4,3.77017]
[1729557016099,3.7688,2653.4,2652.6,3.76978]
[1729557016307,4.14584,2653.3,2652.6,3.76978]
[1729557016607,0.37688,2653.3,2652.6,3.76978]
[1729557016769,3.76927,2653.1,2652.4,3.77013]
[1729557016970,3.76885,2653.4,2652.6,3.76976]
[1729557017207,3.76885,2653.4,2652.6,3.76987]
[1729557017770,3.76899,2653.3,2652.5,3.77002]
[1729557017970,3.76912,2653.2,2652.3,3.7702]
[1729557018237,3.76912,2653.2,2651.1,3.77196]
[1729557018238,3.7709,2651.9,2651.1,3.77196]
[1729557018475,3.77104,2651.8,2651.0,0.7964]
[1729557018688,3.77133,2651.6,2650.6,3.77264]
[1729557018983,3.77182,2651.3,2650.5,3.77278]
[1729557019282,3.0,2651.5,2650.8,3.77243]
[1729557019492,3.0,2651.5,2650.6,3.7726]
[1729557019696,3.72169,2651.4,2650.6,3.7726]
[1729557019842,0.83537389,2651.5,2650.4,3.77301]
[1729557020174,0.82975856,2651.4,2651.2,3.77182]
[1729557020738,0.82975856,2651.4,2651.3,3.77173]
[1729557020938,3.77179,2651.3,2650.2,3.77319]
[1729557021180,3.77225,2651.0,2650.1,3.77344]
[1729557021381,0.46015486,2651.2,2650.2,3.77324]
[1729557021539,0.83058304,2651.1,2650.3,3.77311]
[1729557021743,4.60264304,2651.1,2650.3,3.77311]
[1729557021940,0.83058304,2651.1,2650.4,3.77301]
[1729557022143,0.83058304,2651.1,2650.5,3.77286]
[1729557022385,0.83058304,2651.1,2650.6,3.7727]
[1729557022890,0.83058304,2651.1,2650.8,3.77242]
[1729557023383,0.83058304,2651.1,2650.6,4.52637]
[1729557023384,0.83058304,2651.1,2650.6,3.77262]
[1729557023584,0.83058304,2651.1,2650.4,3.77299]
[1729557023795,4.60262304,2651.1,2650.2,3.77328]
[1729557024081,0.4602623,2651.0,2650.2,3.77328]
[1729557024387,0.4602623,2651.0,2650.0,3.77349]
[1729557024538,3.77239,2650.9,2650.0,3.77349]
[1729557024738,0.83058304,2651.1,2650.2,3.7733]
[1729557024943,0.83058304,2651.1,2650.5,3.77284]
[1729557025247,1.59082134,2651.1,2650.5,3.77284]
[1729557025447,1.59082134,2651.1,2650.4,3.77287]
[1729557026286,1.59082134,2651.1,2650.0,3.77354]
[1729557026287,3.77239,2650.9,2650.0,3.77354]
[1729557026486,0.01,2650.9,2649.5,3.77428]
[1729557026782,0.01,2650.9,2649.2,0.755]
[1729557026783,3.77288,2650.5,2649.6,3.77404]
[1729557026985,0.755547,2650.5,2649.9,3.7736]
[1729557027167,0.83058304,2651.1,2650.0,3.77348]
[1729557027369,3.77243,2650.9,2650.1,3.77334]
[1729557027578,0.01,2649.5,2647.8,0.755]
[1729557027742,0.01,2649.5,2647.5,0.60111737]
[1729557027743,0.01,2649.1,2647.5,0.59111737]
[1729557027947,0.01,2647.8,2647.6,0.24109135]
[1729557028144,0.01,2647.8,2647.3,3.0]
[1729557028145,6.77714,2647.5,2647.3,3.0]
[1729557028578,7.2242052,2647.4,2647.3,0.52066216]
[1729557028790,7.2242052,2647.4,2646.3,2.9]
[1729557028791,3.0,2647.1,2646.3,2.9]
[1729557029085,0.81171856,2647.4,2646.3,2.9]
[1729557029086,5.05774902,2647.0,2646.3,2.9]
[1729557029421,3.77817,2646.8,2646.3,2.9]
[1729557029582,0.3410447,2646.7,2646.3,2.9]
[1729557029767,3.77772,2647.1,2646.3,2.9]
[1729557029768,3.77773,2647.1,2646.3,2.9]
[1729557030115,0.56840784,2647.3,2646.5,5.0189297]
[1729557030418,0.56840784,2647.3,2646.3,2.9]
[1729557030562,3.77688,2647.7,2646.3,2.9]
[1729557030767,0.34091785,2647.6,2646.3,2.91]
[1729557030967,0.01877696,2647.9,2646.3,2.91]
[1729557031213,3.777,2647.6,2646.4,0.01]
[1729557031370,0.56840784,2648.0,2646.6,0.01]
[1729557031371,3.77648,2648.0,2646.6,0.01]
[1729557031566,0.82004436,2648.1,2646.9,5.0189297]
[1729557031762,0.82004436,2648.1,2647.5,0.01]
[1729557031967,0.01877696,2648.7,2647.5,5.0189297]
[1729557032212,3.77541,2648.8,2647.6,0.50189297]
[1729557032372,3.77559,2648.6,2647.6,0.50189297]
[1729557032568,3.77524,2648.9,2647.7,3.77679]
[1729557032887,3.77506,2649.0,2647.8,3.77666]
[1729557033124,3.77486,2649.1,2647.6,5.0189297]
[1729557033384,3.77558,2648.6,2647.7,0.03385608]
[1729557033899,3.776,2648.3,2647.7,0.03385608]
[1729557034102,3.77558,2648.6,2647.7,0.03385608]
[1729557034285,4.153278,2648.5,2647.3,3.78741]
[1729557034469,3.77597,2648.4,2647.8,0.03385608]
[1729557034687,3.77597,2648.4,2647.3,0.01]
[1729557035012,5.0189297,2647.6,2646.2,3.62345041]
[1729557035223,6.77871,2646.4,2646.2,3.62345041]
[1729557035375,3.77871,2646.4,2646.2,3.62345041]
[1729557035713,7.02063966,2646.4,2646.2,3.62345041]
[1729557036016,6.67871,2646.4,2646.2,3.62345041]
[1729557036183,7.07932853,2646.4,2646.2,3.62345041]
[1729557036887,4.29893993,2647.5,2646.2,3.62345041]
[1729557037084,3.77745,2647.3,2646.2,7.40234041]
[1729557037289,5.0189297,2647.3,2646.2,3.62345041]
[1729557037519,3.77747,2647.3,2646.3,6.67872]
[1729557037715,3.77766,2647.2,2646.3,2.9]
[1729557037889,0.52166993,2647.5,2646.3,2.9]
[1729557038104,3.77731,2647.4,2646.3,2.9]
[1729557038290,4.6010957,2647.1,2646.3,2.9]
[1729557038633,0.8233457,2647.1,2646.7,0.01]
[1729557038789,0.8233457,2647.1,2647.0,4.32786]
[1729557038990,0.59181259,2647.9,2647.1,3.77766]
[1729557039188,0.59181259,2647.9,2647.0,5.04657]
[1729557039388,4.36850259,2647.9,2646.9,0.7934]
[1729557039632,0.59181259,2647.9,2647.0,3.77775]
[1729557039839,3.77673,2647.8,2646.9,4.57139]
[1729557040021,0.59181259,2647.9,2647.2,3.77754]
[1729557040223,0.59181259,2647.9,2646.9,0.7934]
[1729557040394,3.77699,2647.7,2646.7,3.77819]
[1729557040735,0.81454226,2647.7,2646.9,3.7779]
[1729557040885,3.77723,2647.5,2646.6,3.77838]
[1729557041089,3.77723,2647.5,2646.5,0.8217]
[1729557041300,3.77755,2647.3,2646.5,0.8217]
[1729557041728,3.7772,2647.5,2646.3,6.67872]
[1729557041729,3.77812,2646.9,2646.3,2.9]
[1729557041931,3.77739,2647.4,2646.3,3.56234504]
[1729557042232,3.77694,2647.7,2646.8,3.7781]
[1729557042438,3.7774,2647.4,2646.5,3.77855]
[1729557042604,3.77667,2647.9,2646.5,0.01]
[1729557042811,3.77703,2647.6,2646.8,3.77811]
[1729557043225,3.77699,2647.7,2646.9,3.77798]
[1729557043409,3.77702,2647.6,2646.9,3.77798]
[1729557043594,3.77699,2647.7,2646.9,3.77798]
[1729557043791,3.77661,2647.9,2646.9,3.77798]
[1729557043792,3.77658,2647.9,2647.0,3.77784]
[1729557044137,3.77726,2647.5,2646.9,0.8127]
[1729557044295,3.77689,2647.7,2646.9,0.8127]
[1729557044486,0.01877696,2648.2,2646.5,4.59117]
[1729557044487,3.77734,2647.4,2646.5,4.59117]
[1729557044692,3.77734,2647.4,2646.5,4.59125]
[1729557045007,3.77759,2647.2,2646.5,1.3370595]
[1729557045206,3.77759,2647.2,2646.4,3.77862]
[1729557045413,3.77682,2647.8,2646.2,3.62345041]
[1729557045414,3.77815,2646.8,2646.2,3.62345041]
[1729557045649,3.7783,2646.7,2646.2,3.62345041]
[1729557045915,3.77815,2646.8,2646.2,3.62345041]
[1729557046128,3.77789,2647.0,2646.2,7.40241041]
[1729557046305,0.02,2647.8,2646.2,7.40241041]
[1729557046306,5.0289297,2648.1,2646.2,4.74161045]
[1729557046518,3.77773,2647.1,2646.3,3.7788]
[1729557046731,0.01877696,2648.2,2646.6,0.01]
[1729557046896,3.77657,2647.9,2647.1,3.77761]
[1729557047093,3.77694,2647.7,2646.9,3.77794]
[1729557047509,3.77718,2647.5,2646.8,3.77814]
[1729557047708,7.55424,2647.6,2646.8,3.77814]
[1729557047933,3.77711,2647.6,2646.7,3.77823]
[1729557048103,3.77758,2647.2,2646.4,0.7552]
[1729557048303,0.01,2647.0,2646.2,3.62345041]
[1729557048532,3.77886,2646.3,2646.2,3.62345041]
[1729557048690,3.77873,2646.4,2646.2,3.62345041]
[1729557048900,3.77886,2646.3,2646.2,3.62345041]
[1729557049323,3.77874,2646.4,2646.2,3.62345041]
[1729557049537,3.77871,2646.5,2646.2,3.62345041]
[1729557049844,3.77831,2646.7,2646.2,3.62345041]
[1729557050358,3.77844,2646.6,2646.2,3.62345041]
[1729557050576,4.3040205,2646.7,2646.2,3.62345041]
[1729557050856,4.3040205,2646.7,2645.3,1.10986]
[1729557050857,3.78014,2645.4,2645.3,1.10986]
[1729557051035,6.78014,2645.4,2645.3,1.10986]
[1729557051209,3.78014,2645.4,2645.3,1.10986]
[1729557051655,3.78032,2645.3,2644.7,0.12923]
[1729557051851,3.73067,2645.1,2644.7,0.12923]
[1729557052050,3.78032,2645.3,2644.1,3.78694]
[1729557052051,3.78032,2645.3,2644.3,2.12923]
[1729557052252,3.78032,2645.3,2644.3,6.502448]
[1729557052457,3.78032,2645.3,2644.3,6.502558]
[1729557052626,3.78032,2645.3,2644.3,2.720848]
[1729557052830,3.7791,2646.2,2645.1,3.78044]
[1729557053134,3.77916,2646.1,2645.3,0.8308]
[1729557053338,5.03770666,2646.5,2645.4,3.85562284]
[1729557053339,3.77883,2646.4,2645.4,3.85562284]
[1729557053544,3.79736696,2646.5,2645.5,3.7799]
[1729557053858,3.79736696,2646.5,2645.4,0.01]
[1729557053859,3.77872,2646.4,2645.3,5.072161]
[1729557054055,3.77903,2646.2,2645.3,0.8308]
[1729557054256,7.55764,2646.4,2645.3,4.61095]
[1729557054462,8.7969497,2646.9,2645.3,4.61095]
[1729557054463,5.0189297,2646.9,2645.3,4.61095]
[1729557054752,8.7969497,2646.9,2645.4,3.8526034]
[1729557054956,3.77865,2646.5,2645.4,3.78004]
[1729557055260,3.77834,2646.7,2645.7,3.7797]
[1729557055554,3.77861,2646.5,2645.6,3.77981]
[1729557055757,3.77861,2646.5,2645.4,0.01]
[1729557055925,3.77861,2646.5,2645.6,3.77976]
[1729557056129,3.77834,2646.7,2645.6,3.77976]
[1729557056313,3.78698,2647.7,2646.2,0.8242]
[1729557056314,3.77788,2647.0,2646.2,0.8242]
[1729557056518,3.77758,2647.2,2646.2,0.8242]
[1729557056519,3.77757,2647.2,2646.2,0.8242]
[1729557056718,3.77842,2646.7,2645.7,0.8242]
[1729557056920,3.77858,2646.5,2645.7,0.8242]
[1729557057114,5.0189297,2647.3,2645.7,0.8242]
[1729557057115,5.0189297,2646.9,2645.7,0.8242]
[1729557057315,3.77896,2646.3,2645.7,0.8242]
[1729557057511,3.77859,2646.5,2645.7,0.8242]
[1729557057825,3.77859,2646.5,2645.7,1.284604]
[1729557058460,3.77859,2646.5,2645.7,5.064224]
[1729557058668,3.77859,2646.5,2644.3,2.12923]
[1729557058669,0.7635,2644.7,2644.3,2.12923]
[1729557058815,3.78157,2644.4,2644.3,2.12923]
[1729557059013,0.7135,2644.7,2644.3,2.12923]
[1729557059014,4.49467,2644.7,2644.3,2.12923]
[1729557059222,3.78157,2644.4,2644.3,2.12923]
[1729557059849,3.78129,2644.6,2644.3,2.12923]
[1729557060128,3.73157,2644.4,2644.3,2.12923]
[1729557061449,3.78257,2643.7,2643.3,3.0]
[1729557061770,3.78205,2644.1,2643.4,0.0451007]
[1729557061969,3.78216,2644.0,2643.3,3.0]
[1729557062126,3.78205,2644.1,2643.3,3.0]
[1729557062481,6.783,2643.4,2643.3,3.0]
[1729557062770,3.783,2643.4,2643.3,3.0]
[1729557062976,6.783,2643.4,2643.3,1.10843]
[1729557063275,3.79285,2643.6,2641.8,0.11669274]
[1729557063276,5.01,2641.9,2641.8,0.11669274]
[1729557063487,5.01,2641.9,2640.6,0.26877696]
[1729557063488,8.8147997,2641.4,2641.3,3.2773857]
[1729557063768,11.8047997,2641.4,2641.3,3.2773857]
[1729557063940,12.15339138,2641.4,2641.3,3.2273857]
[1729557064143,3.78859,2639.6,2638.5,3.78997]
[1729557064346,3.79003,2638.5,2637.8,3.72159091]
[1729557064548,6.88883,2638.5,2637.8,3.72159091]
[1729557064755,16.34346,2637.5,2637.4,0.09132091]
[1729557064924,12.36204,2637.1,2637.0,0.01]
[1729557065282,12.36204,2637.1,2635.0,0.7]
[1729557065283,3.79351,2636.1,2635.6,0.0515044]
[1729557065590,0.41406,2636.0,2635.6,0.0515044]
[1729557065785,5.0189297,2635.7,2635.4,2.6374444]
[1729557066082,3.80521,2634.9,2634.8,1.80232]
[1729557066385,3.80521,2634.9,2632.8,2.6644908]
[1729557066386,0.01,2632.9,2632.8,2.6644908]
[1729557066689,0.01,2632.9,2630.5,3.80149]
[1729557066690,0.01,2631.2,2630.0,0.04381937]
[1729557066841,0.2989,2630.4,2629.0,3.80372]
[1729557067031,0.01,2629.6,2628.1,2.0]
[1729557067239,7.77,2629.8,2626.5,6.80726]
[1729557067240,0.01,2628.0,2626.5,6.80726]
[1729557067460,23.75175441,2629.5,2624.4,62.4]
[1729557067633,11.56,2627.4,2622.5,3.0]
[1729557067829,11.56,2627.4,2627.2,0.01]
[1729557067830,7.606,2627.3,2627.2,0.01]
[1729557068033,6.34683223,2627.3,2627.2,0.01]
[1729557068343,0.80460139,2629.0,2628.0,0.01]
[1729557068543,0.23809731,2630.1,2629.0,0.01]
[1729557068741,0.23809731,2630.1,2627.3,0.0659]
[1729557068742,0.6922382,2630.4,2630.0,6.17393464]
[1729557068937,0.2380211,2631.1,2628.6,3.8]
[1729557068938,5.0,2632.4,2629.1,0.01]
[1729557069176,0.18549536,2631.7,2631.1,6.17393464]
[1729557069331,0.18549536,2631.7,2628.0,0.40646806]
[1729557069332,0.18549536,2631.7,2631.3,0.8035]
[1729557069535,5.0,2633.0,2630.8,3.46968826]
[1729557069765,2.02730066,2631.6,2630.2,0.01877696]
[1729557069991,2.02730066,2631.6,2631.5,0.01]
[1729557070333,2.02730066,2631.6,2630.8,0.01]
[1729557070535,0.01,2632.4,2630.4,0.01877696]
[1729557070767,0.01,2632.4,2630.1,3.8021]
[1729557070768,0.01,2632.0,2630.1,3.8021]
[1729557070967,0.01,2632.0,2629.4,3.80311]
[1729557070968,0.01,2629.4,2628.8,0.01877696]
[1729557071300,0.01,2629.4,2622.5,0.00979]
[1729557071301,3.80754,2626.4,2626.1,0.01877696]
[1729557071583,3.80754,2626.4,2623.2,11.20572291]
[1729557071584,0.01,2625.2,2623.0,6.17393464]
[1729557071796,1.0031411,2625.1,2624.5,6.17393464]
[1729557072087,1.2255123,2626.2,2624.5,6.17393464]
[1729557072088,0.01877696,2626.3,2625.3,0.01]
[1729557072248,3.02,2628.9,2625.0,0.7833]
[1729557072249,0.06590615,2628.3,2627.3,3.80614]
[1729557072572,0.01,2629.6,2626.9,0.01]
[1729557072573,0.01877696,2629.6,2628.1,3.81492]
[1729557072777,0.06586095,2630.4,2629.1,3.80348]
[1729557072987,0.01877696,2631.3,2629.8,6.17393464]
[1729557073130,0.01,2632.0,2630.6,3.80137]
[1729557073336,3.86424305,2632.7,2630.7,3.0]
[1729557073586,3.86424305,2632.7,2630.6,3.80141]
[1729557073587,0.01,2632.5,2630.6,6.80131]
[1729557073882,0.01,2632.5,2630.3,3.80178]
[1729557073883,0.01,2631.9,2630.2,3.80199]
[1729557074048,0.01,2632.7,2631.0,3.0]
[1729557074234,5.0,2633.6,2630.5,6.17393464]
[1729557074235,0.02877696,2633.0,2631.2,6.17393464]
[1729557074442,3.79836,2632.8,2630.8,3.80106]
[1729557074777,0.01,2631.3,2629.3,3.0]
[1729557075078,0.01,2630.9,2629.4,3.0]
[1729557075384,0.01,2630.9,2629.1,4.62284]
[1729557075385,0.01,2631.4,2629.6,3.0]
[1729557075585,0.40258003,2631.1,2629.7,0.01]
[1729557075730,0.01,2631.5,2629.7,0.01]
[1729557075935,0.01,2631.3,2629.5,0.01]
[1729557076171,0.01,2632.2,2630.9,3.80096]
[1729557076437,0.01,2632.0,2630.3,0.01]
[1729557076639,0.01,2632.3,2631.2,3.80049]
[1729557077136,0.01,2631.7,2629.6,3.80273]
[1729557077336,0.01,2631.7,2628.0,0.7523]
[1729557077337,3.80228,2630.0,2628.0,0.7523]
[1729557077580,0.01,2628.9,2627.4,0.380614]
[1729557077754,3.80336,2629.3,2624.9,0.01]
[1729557077755,0.01,2627.4,2624.9,0.01]
[1729557077950,0.01,2626.8,2624.3,0.01]
[1729557078185,0.01,2626.8,2621.6,5.2017524]
[1729557078186,0.01,2625.4,2623.5,0.01]
[1729557078381,3.80783,2626.2,2621.6,5.2017524]
[1729557078382,0.01,2623.2,2622.4,0.01]
[1729557078542,29.575461,2623.1,2622.0,0.11103603]
[1729557078743,3.81061,2624.3,2622.2,3.81359]
[1729557079042,0.01877696,2624.1,2623.4,6.17393464]
[1729557079248,3.0,2625.9,2623.1,3.81223]
[1729557079249,0.01877696,2625.3,2624.0,6.17393464]
[1729557079560,0.01877696,2625.3,2622.4,3.8133]
[1729557079561,0.39574891,2627.0,2625.3,3.80908]
[1729557079767,6.674,2626.9,2624.9,0.01]
[1729557080055,0.29574891,2627.0,2624.5,0.01]
[1729557080368,0.41359912,2627.5,2625.1,0.8163]
[1729557080369,0.01,2626.6,2625.1,0.8163]
[1729557080712,0.01,2625.4,2623.7,0.8163]
[1729557080996,0.01,2625.4,2622.9,3.81251]
[1729557080997,0.01,2625.0,2622.9,3.81251]
[1729557081145,0.01,2624.9,2622.5,0.7568]
[1729557081340,3.81028,2624.5,2623.1,3.81228]
[1729557081553,0.01,2624.6,2623.4,3.81184]
[1729557081757,3.81965,2625.0,2622.3,4.284659]
[1729557081758,0.01,2624.5,2622.3,0.471359]
[1729557081992,0.01,2624.1,2622.7,3.81278]
[1729557082201,0.01,2624.1,2622.1,0.9]
[1729557082202,0.01,2625.0,2622.3,8.2074291]
[1729557082388,0.01877696,2625.8,2623.1,8.1974291]
[1729557082685,3.81674,2627.0,2624.8,3.80968]
[1729557082864,3.80627,2627.3,2625.0,0.7519]
[1729557083073,3.80583,2627.6,2625.1,3.80937]
[1729557083074,0.01,2626.8,2625.1,3.80937]
[1729557083406,3.80546,2627.8,2625.0,0.456158]
[1729557083407,0.01,2626.6,2625.0,0.456158]
[1729557083580,0.01,2627.1,2625.3,3.0]
[1729557083789,0.02877696,2627.7,2625.9,3.0]
[1729557084111,0.01,2629.0,2625.4,4.35889]
[1729557084112,0.01,2628.7,2626.7,7.6141]
[1729557084296,0.01,2630.2,2627.6,3.0]
[1729557084500,0.01,2630.2,2627.2,0.01]
[1729557084501,0.01,2629.1,2627.4,3.0]
[1729557084669,0.01,2629.5,2627.5,0.3]
[1729557084871,0.01,2629.7,2628.6,3.80418]
[1729557085121,0.01,2629.7,2627.6,0.55]
[1729557085122,0.01,2630.0,2628.8,3.804]
[1729557085269,0.01,2630.1,2628.4,3.0]
[1729557085466,0.01,2630.1,2628.1,0.7523]
[1729557085467,0.01,2629.9,2628.1,0.7523]
[1729557085773,0.01,2629.7,2628.3,3.0]
[1729557085924,0.01,2629.9,2629.0,3.80372]
[1729557086129,0.01,2629.6,2628.2,0.55]
[1729557086434,3.80179,2630.4,2628.2,0.55]
[1729557086435,0.01,2630.2,2628.6,3.80429]
[1729557086632,0.01,2629.3,2627.6,3.80575]
[1729557086928,0.01,2629.0,2628.1,3.80501]
[1729557087077,0.01,2628.7,2627.5,3.0]
[1729557087277,0.01,2628.9,2628.1,3.0]
[1729557087481,0.01,2628.3,2627.2,4.60852]
[1729557087720,0.01,2628.3,2627.2,0.8022]
[1729557087878,0.01,2628.7,2627.4,3.80601]
[1729557088084,3.8039,2628.9,2627.4,3.80601]
[1729557088085,0.01,2628.3,2627.6,3.80563]
[1729557088524,0.01877696,2629.5,2628.1,3.80501]
[1729557088525,0.01,2628.9,2628.1,3.80501]